Cogmind - Beta 13 @@@ ROGUE MODE // 2024.05.16 @ 11:59:47 Player: CanadianCogs Result: Destroyed by G-34 Mercenary with Small Laser Performance ------------- Evolutions (0) 0 Regions Visited (1) 200 Robots Destroyed (15) 75 Value Destroyed (297) 297 Prototype IDs (0) 0 Alien Tech Used (0) 0 Bonus (0) 0 TOTAL SCORE: 572 Bonus ------- None Cogmind --------- Core Integrity 0/250 Matter 253/300 Energy 231/250 System Corruption 0% Temperature Cool (36) Movement Core (250) Ox4 Location -10/Materials Parts ------- > --- POWER (1) -------- Ion Engine > --- PROPULSION (2) --- (None) > --- UTILITY (2) ------ Small Storage Unit Seismic Detector > --- WEAPON (2) ------- EM Pulse Gun EM Pulse Gun > --- INVENTORY (8) ---- Cooling System Cooling System ECM Suite Mini Grenade Launcher Mini Grenade Launcher Mini Grenade Launcher Mini Grenade Launcher Datajack Peak State ------------ > --- POWER ------------ Light Ion Engine > --- PROPULSION ------- Wheel Wheel > --- UTILITY ---------- Small Storage Unit Seismic Detector > --- WEAPON ----------- Medium Laser Medium Laser > --- INVENTORY -------- (None) [Rating: 7] Favorites ----------- Power Light Ion Engine Engine Light Ion Engine Propulsion Wheel Wheel Wheel Utility Small Storage Unit Device Seismic Detector Storage Small Storage Unit Weapon Medium Laser Energy Gun Medium Laser Launcher Mini Grenade Launcher Build | -11 -10 ------- Run | Yrd Mat Slots Evolved . | . . Power . | . . Propulsion . | . . Utility . | . . Weapon . | . . Parts Attached 12 | 7 5 Power 2 | 1 1 Engine 2 | 1 1 Core . | . . Reactor . | . . Propulsion 2 | 2 . Treads . | . . Leg . | . . Wheel 2 | 2 . Hover . | . . Flight . | . . Utility 2 | 2 . Device 1 | 1 . Storage 1 | 1 . Processor . | . . Hackware . | . . Protection . | . . Artifact . | . . Weapon 6 | 2 4 Energy Gun 5 | 2 3 Energy Cannon . | . . Ballistic Gun . | . . Ballistic Cannon . | . . Launcher 1 | . 1 Special Weapon . | . . Impact Weapon . | . . Slashing Weapon . | . . Piercing Weapon . | . . Special Melee Weapon . | . . Unidentified Prototypes . | . . Parts Lost 5 | . 5 Power 1 | . 1 Propulsion 2 | . 2 Utility . | . . Weapon 2 | . 2 Highest Loss Streak 4 | . 4 To Critical Strikes . | . . Average Slot Usage (%) 66 | . 66 Engine 7 | . 7 Wheel 10 | . 10 Device 14 | . 14 Storage 14 | . 14 Energy Gun 19 | . 19 Naked Turns . | . . Heaviest Build 15 | 13 15 Greatest Support 20 | 20 20 Greatest Overweight (x) 4 | . 4 Average Overweight (x) 1 | . 1 Largest Inventory Capacity 8 | 8 8 Average Capacity 7 | 6 8 Most Carried 8 | 5 8 Average Carried 3 | 1 3 Final Capacity 8 | 8 8 Final Carried 8 | . 8 Class Distribution -------------------- 100% | Mutant Dominant Class ---------------- Mutant | -10/Materials Resources | -11 -10 ----------- Run | Yrd Mat Matter Collected 284 | 233 51 Remotely . | . . Salvage Created 467 | 29 438 Parts 25 | 2 23 Haulers Intercepted 1 | . 1 Recyclers Shooed . | . . Parts Field Recycled . | . . Retrieved Matter . | . . Parts Self-Destructed . | . . Prevented . | . . Kills | -11 -10 ------- Run | Yrd Mat Combat Hostiles Destroyed 12 | . 12 Guns 9 | . 9 AOE 3 | . 3 Classes Destroyed 5 | 1 4 Worker 1 | . 1 Tunneler 1 | 1 . Hauler 1 | . 1 Swarmer 6 | . 6 Grunt 6 | . 6 Best Kill Streak 4 | 1 4 Combat Bots Only 3 | . 3 Max Kills in Single Turn 3 | 1 3 Gunslinging . | . . Exploded 2 | . 2 Melee . | . . Uniques/NPCs Destroyed . | . . Combat | -11 -10 -------- Run | Yrd Mat Hostile Shots Fired 80 | . 80 Missed 16 | . 16 Damage Taken 669 | . 669 Core 259 | . 259 Absorbed by Shields . | . . Core Remaining (%) 100 | 100 . Volleys Fired 45 | 4 41 Largest 2 | 2 2 Hottest 100 | 100 100 Shots Fired 71 | 8 63 Gun 69 | 8 61 Cannon . | . . Launcher 2 | . 2 Special . | . . Kinetic . | . . Thermal 54 | 8 46 Explosive 2 | . 2 Electromagnetic 15 | . 15 Robot Hit Streak 7 | 5 7 Robot Miss Streak 2 | 1 2 Penetration Max . | . . Secondary Targets 4 | . 4 Max Gunslinging Chain 1 | . 1 Shots Hit Robots 48 | 7 41 Core Hits 20 | 1 19 Critical Kills . | . . Critical Parts Destroyed . | . . Critical Strikes 6 | 1 5 Burn 6 | 1 5 Melee Attacks . | . . Impact . | . . Slashing . | . . Piercing . | . . Sneak Attacks . | . . Combat Hostiles . | . . Follow-up Attacks . | . . Damage Inflicted 877 | 86 791 Guns 651 | 86 565 Cannons . | . . Explosions 226 | . 226 Melee . | . . Ramming . | . . Kinetic . | . . Thermal 598 | 86 512 Explosive 152 | . 152 Electromagnetic 127 | . 127 Impact . | . . Slashing . | . . Piercing . | . . Highest Corruption . | . . Average Corruption . | . . Corruption Purged . | . . Corruption Blocked . | . . Overload Shots . | . . Overflow Damage . | . . Projectiles . | . . Explosions . | . . Melee . | . . Knockbacks . | . . Impact . | . . Kinetic . | . . Secondary . | . . Self-Inflicted Damage 8 | . 8 Shots 1 | . 1 Rammed . | . . Targets Rammed . | . . Kicked . | . . Crushed . | . . Highest Temperature 400 | 117 400 Average Temperature 149 | 60 163 Received Heat Transfer 282 | . 282 Siege Activations . | . . Robots Corrupted . | . . Combat Hostiles . | . . Parts Fried . | . . Impact Corruptions . | . . Robots Melted . | . . Combat Hostiles . | . . Parts Melted 6 | 1 5 Heat Transferred 2048 | 333 1715 Parts Sabotaged . | . . Parts Stolen . | . . Parts Stripped . | . . Power Chain Reactions 1 | . 1 Alert | -11 -10 ------- Run | Yrd Mat Peak Influence 373 | 5 373 Initial 3 | . 3 Average 208 | 1 232 Maximum Alert Level 1 | . 1 Low Security (%) 28 | 100 20 Level 1 71 | . 79 Level 2 . | . . Level 3 . | . . Level 4 . | . . Level 5 . | . . High Security . | . . Max Security . | . . Squads Dispatched 5 | . 5 Investigation 3 | . 3 Extermination . | . . Reinforcement 2 | . 2 Assault . | . . Garrison . | . . Intercept . | . . Searches Triggered . | . . Construction Impeded . | . . Haulers Reinforced . | . . Active Scanning Responses . | . . Cargo Convoy Interrupts . | . . Stealth | -11 -10 --------- Run | Yrd Mat Distress Signals . | . . Communications Jammed . | . . Distress Signals . | . . Times Spotted 15 | . 15 Peak Tracking Total 4 | . 4 Tactical Retreats 1 | . 1 Traps | -11 -10 ------- Run | Yrd Mat Traps Triggered 1 | . 1 Indirectly . | . . Trap Hack Attempts . | . . Triggered . | . . Disarmed . | . . Reprogrammed . | . . Reused . | . . Traps Extracted . | . . Installed . | . . Triggered . | . . Machines | -11 -10 ---------- Run | Yrd Mat Machines Disabled 1 | . 1 Max in Single Turn 1 | . 1 Machines Repaired . | . . Machines Dismantled . | . . Machines Sabotaged . | . . Overloaded Fab Kills . | . . Hacking | -11 -10 --------- Run | Yrd Mat Machines Accessed 3 | . 3 Terminals 2 | . 2 Fabricators . | . . Repair Stations . | . . Recycling Units 1 | . 1 Scanalyzers . | . . Garrison Access . | . . Total Hacks 11 | . 11 Successful 4 | . 4 Failed 7 | . 7 Catastrophic 2 | . 2 Database Lockouts . | . . Manual 7 | . 7 Terminals 6 | . 6 Fabricators . | . . Repair Stations . | . . Recycling Units 5 | . 5 Scanalyzers . | . . Garrison Access . | . . Terminal Hacks . | . . Fabricator Hacks . | . . Repair Station Hacks . | . . Recycling Unit Hacks 1 | . 1 Retrieve Components 1 | . 1 Scanalyzer . | . . Garrison Access Hacks . | . . Unauthorized Hacks 3 | . 3 Terminals 2 | . 2 Botnet 2 | . 2 Fabricators . | . . Repair Stations . | . . Recycling Units 1 | . 1 Tunnel 1 | . 1 Scanalyzers . | . . Garrison Access . | . . Data Cores Recovered . | . . Used . | . . Hacking Detections 3 | . 3 Full Trace Events 2 | . 2 Feedback Events . | . . Feedback Blocked . | . . Robot Schematics Acquired . | . . Robots Built . | . . Authchips . | . . Time . | . . Total Robot Build Rating . | . . Part Schematics Acquired . | . . Parts Built . | . . Authchips . | . . Time . | . . Total Part Build Rating . | . . Parts Repaired . | . . Time . | . . Parts Recycled . | . . Recycled Matter . | . . Retrieved Matter . | . . Retrieved Components 2 | . 2 Parts Scanalyzed . | . . Part Schematics Acquired . | . . Parts Damaged . | . . Bothacking | -11 -10 ------------ Run | Yrd Mat Used RIF Installer . | . . Robots Hacked . | . . Non-combat . | . . Combat . | . . Robot Hacks Applied . | . . Relay Couplers Released . | . . Fabnet Peak Effective % . | . . Robots Rewired . | . . Allies Hacked . | . . Hacks Repelled . | . . Allies | -11 -10 -------- Run | Yrd Mat Total Allies . | . . Largest Group . | . . Highest-Rated Group . | . . Highest-Rated Ally . | . . Total Orders . | . . Ally Attacks . | . . Total Damage . | . . Kills . | . . Allies Corrupted . | . . Allies Melted . | . . Intel | -11 -10 ------- Run | Yrd Mat Robot Analysis Total . | . . Derelict Logs Recovered . | . . Drone Launches . | . . Drone Recoveries . | . . Exploration | -11 -10 ------------- Run | Yrd Mat Turns Passed 429 | 45 384 Spaces Moved 206 | 30 176 Core 107 | 13 94 Treads . | . . Legs . | . . Wheels 99 | 17 82 Hover . | . . Flight . | . . Fastest Speed 50 | 50 80 Average Speed 116 | 67 125 Slowest Speed 250 | 80 250 Overloaded Moves . | . . Propulsion Burnouts . | . . Robots Hopped . | . . Cave-ins Triggered . | . . Exploration Rate (%) 13 | 3 23 Regions Visited 1 Branch Regions . Pre-discovered Areas 1 | . 1 Known Exits Taken . | . . Unknown Exits Taken 1 | 1 . Scrap Searched . | . . Spaces Dug 6 | . 6 Terrain Destroyed 11 | . 11 Melee . | . . Projectile . | . . AOE 11 | . 11 Terrain Rammed . | . . Walls Destroyed . | . . Machines Disabled . | . . Actions | -11 -10 --------- Run | Yrd Mat Total 323 | 46 277 Wait 43 | . 43 Move 205 | 29 176 Hop . | . . Pick Up 16 | 6 10 Fast Attach 3 | 1 2 Attach 9 | 6 3 Detach 1 | . 1 Swap . | . . Drop 1 | . 1 Fire 45 | 4 41 Melee . | . . Ram . | . . Kick . | . . Crush . | . . Escape Stasis . | . . Rewire . | . . Trap . | . . Miscellaneous . | . . Route ------- -11/Scrapyard -10/Materials History --------- Turn | Location | Event 9 | -11/Scrapyard | Discovered new exit (range 16) 46 | -11/Scrapyard | Entered Materials 193 | -10/Materials | Core integrity fell below 50% 231 | -10/Materials | Lost 4 parts (1p2n1w) 306 | -10/Materials | Build established: Mutant 350 | -10/Materials | Core integrity fell below 20% 430 | -10/Materials | Destroyed by G-34 Mercenary with Small Laser Last Messages --------------- 00378_ Acquired Ion Engine. 00380_ U-05 Engineer builds a Wall. 00385_ U-05 Engineer lays Concrete. 00393_ U-05 Engineer builds a Wall. 00397_ Acquired EM Pulse Gun. 00397_ U-05 Engineer lays Concrete. 00399_ U-05 Engineer builds a Wall. 00401_ Acquired EM Pulse Gun. 00404_ U-05 Engineer lays Concrete. 00406_ U-05 Engineer builds a Wall. 00410_ The unstable cave ceiling collapses. 00415_ Connecting with Terminal... >>Trojan(Botnet) Trojan loaded successfully. Testing... Terminal linked with 1 system. Awaiting botnet instructions. 00415_ ALERT: Suspicious activity at Terminal M008. Dispatching Investigation squad. 00415_ A-02 Transporter destroyed. Map ----- +----------------------------------------------------+ | ?????# % # """ "#??????????????????? | | ?????# + """ "#??????????????????? | | ?????# # T#??????????????????? | | ?????####+### # """ "#??????????????????? | | ???????? ?##% ## """ "#??????????????????? | | ???????? ??# ## """ "#??????????????????? | | ??????? """?# ## #??????????????????? | | ??????? R"?# ###########??????????????????? | | ?????? """## #????????????????????????????? | | ?????? ## #????????????????????????????? | | ?????#+####### #????????????????????????????? | | ?????# #?????# #????????????????????????????? | | ?????# #?????# #????????????????????????????? | | ?##### ####### #????????????????????????????? | | ?# [ + ???????????????????????????? | | ?# #????????????????????????????? | | ?#!! """" #????????????????????????????? | | ?# ##???????????????????????????? | | ?#!! #???????????????????????????? | | ?#!! [% %=##???????????????????????????? | | ?##### = = #???????????????????????????? | | ?????# #####= #####????????????????????????? | | ?????# #??# #"""#????????????????????????? | | ?????# #??## #"T"##########+###???????????? | | ?????# #???## t ????????? | | ?????# #????# r@ ! ????????? | | ?????# #????# !! !!! g [????????? | | ?????# #????# !! !! !%!####???????????? | | ?????# #????# ! *!!#??????????????? | | ?????####????# ! #??????????????? | | ?????????????# #### #??????????????? | | ?????????????# #???? #??????????????? | | ?????????????#########+##????? +??????????????? | | ???????????????????????????????#??????????????? | | ??????????????????????????????????????????????? | | ??????????????????????????????????????????????? | | ??????????????????????????????????????????????? | | ??????????????????????????????????????????????? | | ??????????????????????????????????????????????? | | ??????????????????????????????????????????????? | | ??????????????????????????????????????????????? | | ??????????????????????????????????????????????? | | ??????????????????????????????????????????????? | | | | | | | | | | | | | | | +----------------------------------------------------+ Best States ------------- Heat Dissipation 25 Energy Generation 10 Energy Capacity 250 Matter Stores 300 Matter Capacity 300 Sight Range 16 Terrain Scan Density 10 Evasion (%) 50 Item Schematics ----------------- None Robot Schematics ------------------ None Fabricated ------------ Nothing Alien Tech Used ----------------- None Achievements -------------- None Challenges ------------ None Game ------ Seed HardlightCatalystBuckler Manual? 1 Play Time 00:06:10 Cumulative 28.4 hours Start 2024.05.16 @ 11:54:29 End 2024.05.16 @ 11:59:47 Sessions 1 Manual Loads 0 Difficulty Rogue Special Mode None Game No. 47 Rogue 47 Adventurer 0 Explorer 0 Win Type - Total 0 Types 0/0/0/0/0/0/0/0/0 Lore% 19 Gallery% 26 Achievement% 24 Wizard Run 0 Options --------- Layout 0 ASCII 0 Keyboard 0 Movement Mouse Keybinds 0 Fullscreen 2 Font 18/SmallcapsGlow Map View 38x25 Zoom Use 100% Tactical HUD 1 Map Filters NONE Filters NONE Steam 1 RUN: 1c7eceb2-5746-438d-b447-1ec6efb4163f